bitfinex/quotes_SOLUSD_20241229
["timestamp","ask_amount","ask_price","bid_price","bid_amount"]
[1735478384863,6.5955,196.32,196.25,8.00863086]
[1735478385042,0.95528361,196.31,196.25,8.00863086]
[1735478385749,0.95528361,196.31,196.24,16.01726172]
[1735478385750,0.95528361,196.31,196.24,20.0]
[1735478387167,6.5955,196.32,196.24,20.0]
[1735478387464,0.95521338,196.31,196.24,20.0]
[1735478388541,6.5955,196.32,196.24,20.0]
[1735478388743,0.95521413,196.31,196.24,20.0]
[1735478389258,0.95521956,196.31,196.24,20.0]
[1735478389443,0.95521732,196.31,196.24,20.0]
[1735478389643,0.95521777,196.31,196.24,20.0]
[1735478391160,6.5955,196.32,196.24,20.0]
[1735478391369,0.95521747,196.35,196.25,0.25876954]
[1735478393354,0.95521747,196.35,196.25,20.25876954]
[1735478394566,0.95503848,196.34,196.25,20.25876954]
[1735478394752,23.776884,196.33,196.25,20.0]
[1735478394948,0.95525085,196.32,196.25,20.0]
[1735478396465,0.95525085,196.32,196.23,20.2590015]
[1735478397247,0.95525085,196.32,196.23,20.0]
[1735478397741,0.95525085,196.32,196.24,20.0]
[1735478398170,0.95525085,196.32,196.23,20.0]
[1735478399957,1.613,196.3,196.2,8.00863086]
[1735478400158,23.776884,196.28,196.2,8.00863086]
[1735478400487,0.95548657,196.27,196.2,8.00863086]
[1735478401646,0.95548657,196.27,196.19,3.53960283]
[1735478401967,0.95548657,196.27,196.18,20.0]
[1735478402383,0.95548657,196.27,196.17,20.0]
[1735478403388,0.95548657,196.27,196.16,20.0]
[1735478404899,0.95548657,196.27,196.15,20.0]
[1735478407205,0.95548657,196.27,196.16,0.25960812]
[1735478407490,1.613,196.3,196.16,0.25960812]
[1735478407491,2.56843349,196.3,196.16,0.25960812]
[1735478408374,23.776884,196.29,196.16,0.25960812]
[1735478408579,0.95540152,196.28,196.16,0.25960812]
[1735478409895,24.73226675,196.29,196.16,0.25960812]
[1735478415376,0.95538275,196.29,196.16,44.03649212]
[1735478415701,1.613,196.3,196.16,44.03649212]
[1735478416400,12.7375,196.27,196.16,44.03649212]
[1735478416892,12.7375,196.27,196.16,52.04512298]
[1735478417421,12.7375,196.27,196.16,28.26823898]
[1735478418305,0.95543919,196.26,196.16,0.25960812]
[1735478419004,6.6094,196.24,196.14,8.00863086]
[1735478419207,0.95567452,196.23,196.14,8.00863086]
[1735478419397,0.95567452,196.23,196.1,15.20346921]
[1735478419977,0.95567452,196.23,196.1,8.00863086]
[1735478420276,0.95567452,196.23,196.09,8.00863086]
[1735478420476,0.95567452,196.23,196.12,20.0]
[1735478420702,0.95567452,196.23,196.09,8.2687139]
[1735478421202,0.95567452,196.23,196.1,20.0]
[1735478422015,0.95567452,196.23,196.09,20.0]
[1735478422241,0.95567452,196.23,196.1,0.26000047]
[1735478424121,0.95567452,196.23,196.1,20.26000047]
[1735478425698,0.95567452,196.23,196.1,20.0]
[1735478426008,23.776884,196.22,196.1,20.0]
[1735478426206,23.776884,196.2,196.08,0.26013634]
[1735478426422,2.60551954,196.19,196.09,20.0]
[1735478426908,2.60551954,196.19,196.08,20.0]
[1735478427412,38.23,196.18,196.08,20.0]
[1735478427615,7.26816987,196.17,196.06,0.26041094]
[1735478428196,7.26816987,196.17,196.06,20.26041094]
[1735478430206,6.3122,196.17,196.06,20.26041094]
[1735478434301,0.9558992,196.18,196.1,20.0]
[1735478434503,6.3312,196.22,196.11,0.26035645]
[1735478436398,1.6242,196.24,196.11,0.26035645]
[1735478436599,1.6242,196.24,196.12,0.295]
[1735478436822,6.6407,196.27,196.17,20.0]
[1735478437002,6.6407,196.27,196.18,0.25932188]
[1735478437623,1.5173,196.29,196.18,0.25932188]
[1735478439124,1.5173,196.29,196.19,20.0]
[1735478439317,1.5173,196.29,196.2,0.25910121]
[1735478440309,6.6407,196.32,196.2,0.25910121]
[1735478441715,6.6407,196.32,196.2,0.55410121]
[1735478442408,1.5173,196.34,196.2,0.55410121]
[1735478443008,6.6407,196.37,196.24,20.0]
[1735478443203,6.6407,196.37,196.25,24.03534785]
[1735478443402,6.6407,196.37,196.28,20.0]
[1735478444323,2.47247204,196.39,196.28,20.0]
[1735478445331,2.47247204,196.39,196.25,0.25846385]
[1735478445503,2.47247204,196.39,196.24,20.0]
[1735478445703,2.47247204,196.39,196.25,0.25844183]
[1735478446423,2.47247204,196.39,196.28,20.0]
[1735478448216,1.5173,196.39,196.29,0.25825114]
[1735478449412,1.5173,196.39,196.29,24.03513514]
[1735478449729,6.6407,196.42,196.29,24.03513514]
[1735478449730,6.6407,196.42,196.32,20.0]
[1735478450032,6.6407,196.42,196.33,0.25777134]
[1735478450522,1.5494,196.44,196.33,24.03465534]
[1735478450822,6.4157,196.47,196.4,20.0]
[1735478451014,1.5494,196.49,196.4,20.0]
[1735478453423,0.95427877,196.48,196.37,0.25720947]
[1735478453628,0.95427877,196.48,196.36,0.295]
[1735478454227,1.5494,196.49,196.38,20.0]
[1735478454529,1.5494,196.49,196.39,0.25712748]
[1735478455327,1.5494,196.49,196.4,20.0]
[1735478456012,0.95431467,196.48,196.36,20.295]
[1735478456213,0.95431467,196.48,196.37,0.25742405]
[1735478457131,1.5494,196.49,196.37,0.25742405]
[1735478459123,0.95433016,196.48,196.37,0.25742405]
[1735478459525,23.776884,196.47,196.33,0.25763412]
[1735478459837,0.95458136,196.46,196.33,20.25763412]
[1735478460336,0.95458136,196.46,196.3,0.25774375]
[1735478460337,7.9651,196.44,196.3,0.25774375]
[1735478460530,0.95472086,196.43,196.3,0.25774375]
[1735478461040,0.95472086,196.43,196.32,20.0]
[1735478463133,0.95472086,196.43,196.26,0.25813806]
[1735478463134,23.776884,196.42,196.26,0.25813806]
[1735478463325,0.95491596,196.41,196.26,0.25813806]
[1735478463525,0.95491596,196.41,196.28,20.0]
[1735478464242,6.4157,196.37,196.23,0.25839959]
[1735478464431,0.95506013,196.36,196.23,0.25839959]
[1735478465031,0.95506013,196.36,196.23,20.25839959]
[1735478465229,6.4157,196.37,196.24,23.776884]
[1735478465457,6.4157,196.37,196.25,0.25841817]
[1735478465628,0.95491443,196.36,196.25,0.25841817]
[1735478466427,0.95491443,196.36,196.24,0.25869498]
[1735478467654,1.526,196.35,196.23,20.0]
[1735478467844,0.95517975,196.34,196.23,20.0]
[1735478472555,0.95517975,196.34,196.21,0.25874591]
[1735478472872,0.95517975,196.34,196.17,0.295]
[1735478472873,6.3394,196.32,196.17,0.295]
[1735478473030,1.526,196.3,196.14,6.31544248]
[1735478473233,1.526,196.3,196.15,23.776884]
[1735478473456,1.526,196.3,196.18,20.0]
[1735478473628,1.526,196.3,196.19,0.2591241]
[1735478474542,0.95522148,196.29,196.16,0.25903227]
[1735478475360,0.95522148,196.29,196.18,20.0]
[1735478476057,0.95522148,196.29,196.16,0.25903227]
[1735478477242,23.776884,196.28,196.16,0.25903227]
[1735478477441,23.776884,196.28,196.13,20.0]
[1735478477442,7.8654,196.25,196.13,0.25955522]
[1735478477643,0.95562805,196.24,196.1,0.25984542]
[1735478477853,0.95562805,196.24,196.13,20.0]
[1735478480364,23.776884,196.23,196.1,0.25984542]
[1735478480663,0.95576501,196.22,196.07,0.55511933]
[1735478481968,0.95576501,196.22,196.07,20.55511933]
[1735478482465,23.776884,196.21,196.07,20.55511933]
[1735478482648,0.95588691,196.2,196.07,20.55511933]
[1735478482846,0.95588691,196.2,196.07,20.26011933]
[1735478483548,1.6011,196.18,196.07,20.26011933]
[1735478483749,7.37615462,196.17,196.07,0.26011933]
[1735478483951,7.37615462,196.17,196.04,0.26051438]
[1735478484164,7.37615462,196.17,196.02,0.295]
[1735478485168,7.37615462,196.17,196.03,20.0]
[1735478485468,23.776884,196.16,196.02,0.55573717]
[1735478485653,0.95611137,196.15,196.02,0.26073717]
[1735478486044,0.95611137,196.15,196.03,20.0]
[1735478486247,0.95611137,196.15,196.02,0.26073717]
[1735478486445,0.95611137,196.15,196.03,0.26073889]
[1735478487572,0.95611137,196.15,196.03,20.0]
[1735478489370,0.95611137,196.15,196.04,0.26080905]
[1735478489781,0.95611137,196.15,196.04,24.03769305]
[1735478490070,0.9559161,196.14,196.07,20.0]
[1735478490969,0.95610576,196.16,196.03,20.0]
[1735478491273,6.4202,196.17,196.07,20.0]
[1735478491773,6.4202,196.17,196.08,0.26030102]
[1735478492071,6.4202,196.17,196.07,20.0]
[1735478492378,0.9559211,196.16,196.05,0.26029726]
[1735478492547,0.9559211,196.16,196.02,20.26073015]
[1735478495371,24.7328051,196.16,196.02,20.26073015]
[1735478499978,23.776884,196.15,196.02,20.26073015]
[1735478500277,0.95611465,196.14,196.02,20.26073015]
[1735478501083,0.95619591,196.13,196.02,20.26073015]
[1735478501380,0.95619538,196.15,196.02,20.26073015]
[1735478503858,0.95619538,196.15,196.02,20.0]
[1735478504266,23.776884,196.13,196.02,20.0]
[1735478504466,0.95626897,196.12,196.02,20.0]
[1735478504877,23.776884,196.11,196.0,0.26101546]
[1735478505083,0.95632099,196.1,195.98,0.55623129]
[1735478507382,0.95632099,196.1,195.98,0.26123129]
[1735478507383,6.6645,196.09,195.98,0.26123129]
[1735478507600,1.5725,196.07,195.97,20.0]
[1735478508073,1.5725,196.07,195.98,0.26140392]
[1735478509374,6.6645,196.09,195.98,0.26140392]
[1735478510190,0.95631909,196.08,195.98,0.26140392]
[1735478510485,6.6645,196.09,196.01,20.0]
[1735478510989,0.95630229,196.08,195.98,0.26140392]
[1735478514268,8.1984,196.09,195.98,0.26140392]
[1735478514781,8.1984,196.09,195.98,20.26140392]
[1735478514977,7.35748559,196.13,195.99,1.5705]
[1735478515181,6.4012,196.13,196.03,20.0]
[1735478515483,6.4012,196.13,196.04,0.26066775]
[1735478522692,6.4012,196.13,196.07,20.0]
[1735478522882,6.4012,196.18,196.08,0.26061007]
[1735478524309,6.4012,196.18,196.05,0.26012625]
[1735478524507,0.95583608,196.17,196.05,0.26012625]
[1735478525801,0.95594793,196.17,196.05,0.26012625]
[1735478528105,0.95594793,196.17,196.03,8.2694158]
[1735478528284,23.776884,196.16,196.01,6.5766]
[1735478528486,1.5487,196.13,196.01,20.0]
[1735478529113,1.5487,196.13,196.02,20.26089691]
[1735478532216,6.6624,196.11,196.01,20.0]
[1735478532423,0.95624945,196.1,196.01,20.0]
[1735478532995,0.95624945,196.1,195.97,0.26102017]
[1735478533196,0.95624945,196.1,195.98,13.68922294]
[1735478534404,0.95624945,196.1,196.01,20.0]
[1735478535415,23.776884,196.09,196.01,20.0]
[1735478535717,0.95646144,196.08,196.01,20.0]
[1735478536521,0.9563539,196.1,196.01,20.0]
[1735478537187,6.6624,196.11,196.01,20.0]
[1735478537392,6.6624,196.11,196.01,20.26104331]
[1735478537821,0.95621989,196.1,196.01,20.0]
[1735478540413,6.6624,196.11,196.01,20.0]
[1735478540621,6.6624,196.11,196.02,0.26098414]
[1735478541507,1.5487,196.13,196.03,20.0]
[1735478541713,1.5487,196.13,196.04,0.26068618]
[1735478542027,1.5487,196.13,196.03,20.0]
[1735478542528,1.5487,196.13,196.05,20.0]
[1735478543212,0.95611232,196.12,196.04,20.0]
[1735478544418,0.95611232,196.12,196.01,0.26062238]
[1735478544807,0.95611232,196.12,196.03,20.0]
[1735478545933,1.5487,196.13,196.04,0.26094663]
[1735478547623,1.5487,196.13,196.05,20.0]
[1735478550918,1.5487,196.13,196.04,20.0]
[1735478552140,1.5487,196.13,196.05,20.0]
[1735478552946,1.5487,196.13,196.04,20.0]
[1735478553719,6.4406,196.16,196.05,0.26063186]
[1735478556121,6.4406,196.16,196.06,20.0]
[1735478556447,6.4406,196.16,196.07,0.26042597]
[1735478559049,6.4406,196.16,196.08,20.0]
[1735478561527,0.95596265,196.15,196.08,20.0]
[1735478563623,0.95596265,196.15,196.07,20.0]
[1735478565054,6.4406,196.16,196.07,20.0]
[1735478565233,0.9559666,196.15,196.07,20.0]
[1735478565739,6.4406,196.16,196.07,20.0]
[1735478567154,0.95592767,196.15,196.07,20.0]
[1735478570833,6.4406,196.16,196.07,20.0]
[1735478571058,6.4406,196.16,196.07,20.26045534]
[1735478571658,6.4406,196.16,196.08,20.0]
[1735478572044,1.5893,196.18,196.08,20.0]
[1735478572243,1.5893,196.18,196.09,0.26025507]
[1735478573145,1.5893,196.18,196.09,20.26025507]
[1735478573657,1.5893,196.18,196.13,20.0]
[1735478574036,0.95571396,196.22,196.14,23.776884]
[1735478574236,7.9679,196.29,196.21,20.0]
[1735478579461,7.9679,196.29,196.19,0.25902848]
[1735478579645,0.95538033,196.28,196.17,20.0]
[1735478582281,0.95538033,196.28,196.12,21.6027]
[1735478582862,0.95538033,196.28,196.16,20.0]
[1735478584945,23.776884,196.27,196.16,20.0]
[1735478585146,0.95558805,196.26,196.12,1.86246542]
[1735478586073,0.95558805,196.26,196.12,21.86246542]
[1735478590257,23.776884,196.25,196.12,21.6027]
[1735478590455,0.95573375,196.24,196.12,21.6027]
[1735478593478,0.95573375,196.24,196.12,20.0]
[1735478594081,23.776884,196.23,196.12,20.0]
[1735478594265,0.95579334,196.22,196.12,20.0]
[1735478594468,23.776884,196.25,196.12,20.0]
[1735478594779,0.95578244,196.24,196.12,20.0]
[1735478595658,80.8,196.27,196.12,20.0]
[1735478595659,0.95567668,196.23,196.12,20.0]
[1735478595977,6.3846,196.21,196.08,20.0]
[1735478596166,0.95585526,196.2,196.08,20.0]
[1735478596581,0.95585526,196.2,196.08,20.26030716]
[1735478602191,6.3846,196.21,196.12,20.0]
[1735478610695,6.3846,196.21,196.1,0.25995671]
[1735478610892,0.95571801,196.2,196.11,20.0]
[1735478612300,0.95571801,196.2,196.09,20.0]
[1735478615308,0.95571801,196.2,196.1,20.0]
[1735478620308,0.95571801,196.2,196.11,20.0]
[1735478624610,6.3846,196.21,196.11,20.0]
[1735478624930,1.6662,196.22,196.12,0.25993956]
[1735478625130,1.6662,196.22,196.14,20.0]
[1735478630633,1.6662,196.22,196.15,20.0]
[1735478632229,1.6662,196.22,196.14,20.0]
[1735478634334,1.6662,196.22,196.15,20.0]
[1735478636637,1.6662,196.22,196.16,20.0]
[1735478638739,1.6662,196.22,196.15,20.0]
[1735478639239,1.6662,196.22,196.16,20.0]
[1735478641835,0.95573882,196.21,196.13,8.02619498]
[1735478642923,0.95573882,196.21,196.15,20.0]
[1735478643443,0.95573882,196.21,196.14,20.0]
[1735478644844,0.95573882,196.21,196.11,8.02619498]
[1735478644845,23.776884,196.18,196.11,8.02619498]
[1735478645032,2.50995673,196.17,196.11,8.02619498]
[1735478645434,2.50995673,196.17,196.09,8.02619498]
[1735478646535,2.50995673,196.17,196.05,8.02619498]
[1735478646734,2.50995673,196.17,196.08,20.0]
[1735478647355,2.50995673,196.17,196.06,20.0]
[1735478647539,23.776884,196.16,196.06,20.0]
[1735478647740,0.95618628,196.15,196.06,20.0]
[1735478647938,0.95618628,196.15,196.05,20.0]
[1735478648140,0.95618628,196.15,196.02,41.71637493]
[1735478648342,0.95618628,196.15,196.02,40.13097493]
[1735478649034,0.95618628,196.15,196.02,32.10477995]
[1735478649440,0.95618628,196.15,196.05,20.0]
[1735478650054,23.776884,196.14,196.01,8.02619498]
[1735478650355,0.95624659,196.13,196.04,20.0]
[1735478651169,0.95626215,196.12,196.03,20.0]
[1735478652253,0.95627179,196.11,196.03,20.0]
[1735478652562,0.9562732,196.13,196.03,20.0]
[1735478658849,2.51009626,196.17,196.03,20.26098183]
[1735478661461,2.51009626,196.17,196.03,20.0]
[1735478664869,2.51009626,196.17,196.04,0.26070289]
[1735478666466,2.51009626,196.17,196.07,20.0]
[1735478666666,1.5539,196.17,196.07,20.0]
[1735478666873,1.5539,196.17,196.08,0.26035209]
[1735478669693,6.5384,196.19,196.08,0.26035209]
[1735478671055,6.5384,196.19,196.08,20.26035209]
[1735478672574,1.6047,196.22,196.09,23.776884]
[1735478672764,1.6047,196.22,196.12,20.0]
[1735478675179,0.95571558,196.21,196.12,20.0]
[1735478678196,0.95571558,196.21,196.1,0.25997961]
[1735478678381,23.776884,196.2,196.06,8.02619498]
[1735478678577,7.56030595,196.19,196.06,8.02619498]
[1735478679197,7.56030595,196.19,196.09,20.0]
[1735478682800,7.56030595,196.19,196.05,1.5809]
[1735478682801,7.56030595,196.19,196.06,20.0]
[1735478684773,1.5064,196.17,196.06,20.0]
[1735478685077,24.7330343,196.16,196.03,8.02619498]
[1735478685504,24.7330343,196.16,196.06,20.0]
[1735478685903,24.7330343,196.16,196.02,20.0]
[1735478686606,24.7330343,196.16,196.01,20.26058075]
[1735478687282,23.776884,196.14,196.01,20.0]
[1735478687483,0.95629362,196.13,196.01,20.0]
[1735478688509,0.95629432,196.12,196.01,20.0]
[1735478689402,0.95627952,196.11,196.01,20.0]
[1735478689701,0.95627952,196.13,196.01,20.26114835]
[1735478691378,23.776884,196.12,196.02,20.0]
[1735478691704,2.61544732,196.11,195.99,8.02619498]
[1735478692410,2.61544732,196.11,196.02,20.0]
[1735478693410,2.61544732,196.11,195.99,20.0]
[1735478696586,2.61544732,196.11,196.0,20.0]
[1735478697213,2.61544732,196.11,195.99,20.0]
[1735478698221,2.61544732,196.11,196.0,20.0]
[1735478698582,1.6591,196.11,196.01,0.26115521]
[1735478698988,1.6591,196.11,196.01,20.26115521]
[1735478704086,1.6591,196.11,196.01,0.26115521]
[1735478710119,1.6591,196.11,196.02,20.0]
[1735478714304,1.6591,196.11,196.03,20.0]
[1735478715209,1.0741,196.11,196.03,20.0]
[1735478716700,1.0741,196.11,196.01,0.26115521]
[1735478716701,6.6043,196.15,196.07,20.0]
[1735478716900,0.95601813,196.14,196.07,20.0]
[1735478717725,0.95601813,196.14,196.05,20.0]
[1735478725815,0.95601813,196.14,196.02,0.26077024]
[1735478726000,0.95601813,196.14,196.01,9.66829498]
[1735478726412,0.95601813,196.14,196.04,20.0]
[1735478726913,0.95601813,196.14,196.02,20.0]
[1735478729732,0.95601813,196.14,196.03,20.0]
[1735478730522,0.95601813,196.14,196.02,20.0]
[1735478732723,0.95601813,196.14,195.99,14.36329498]
[1735478732724,6.5798,196.1,195.99,8.02619498]
[1735478732939,0.95641419,196.09,195.99,8.02619498]
[1735478734038,0.95641419,196.09,195.99,20.0]
[1735478737506,0.95641419,196.09,195.98,20.0]
[1735478739648,0.95641419,196.09,195.99,20.0]
[1735478740010,20.0,196.07,195.95,8.28736497]
[1735478740339,0.95644193,196.06,195.95,8.02619498]
[1735478740940,0.95644193,196.06,195.94,20.0]
[1735478741260,0.95662045,196.05,195.94,20.0]
[1735478741537,0.95661006,196.07,195.94,20.0]
[1735478741858,0.95661006,196.07,195.93,21.88503021]
[1735478742157,0.95661006,196.07,195.96,20.0]
[1735478742315,2.4672919,196.08,195.97,0.26136004]
[1735478742640,2.4672919,196.08,195.97,20.26136004]
[1735478743327,1.5107,196.08,195.97,20.26136004]
[1735478744147,1.5107,196.08,195.98,20.0]
[1735478745015,1.5107,196.08,195.99,0.26123818]
[1735478746742,1.5107,196.08,195.98,20.0]
[1735478747112,0.95637987,196.07,195.98,20.0]
[1735478747513,0.95637987,196.07,195.97,20.0]
[1735478752044,0.95637987,196.07,195.93,1.88477503]
[1735478752349,0.95637987,196.07,195.94,20.0]
[1735478752550,0.95637987,196.07,195.95,0.26159338]
[1735478754153,0.95637987,196.07,195.94,20.0]
[1735478760561,0.95637987,196.07,195.93,21.88480705]
[1735478761471,0.95637987,196.07,195.94,20.0]
[1735478762155,0.95637987,196.07,195.93,21.88480705]
[1735478765650,23.776884,196.06,195.93,21.6232]
[1735478765965,6.96361439,196.05,195.92,20.0]
[1735478766146,6.96361439,196.05,195.91,0.26177252]
[1735478767058,6.96361439,196.05,195.93,20.0]
[1735478767865,23.776884,196.04,195.91,0.26177252]
[1735478768048,0.95678727,196.03,195.92,20.0]
[1735478769035,0.95666486,196.02,195.92,20.0]
[1735478770070,23.776884,196.04,195.92,20.0]
[1735478770071,0.95669911,196.03,195.92,20.0]
[1735478771376,0.95662352,196.04,195.92,20.0]
[1735478771667,0.95662352,196.04,195.93,0.26182161]
[1735478772050,6.96347567,196.05,195.93,0.26182161]
[1735478772975,6.96347567,196.05,195.93,20.26182161]
[1735478773149,0.95656775,196.04,195.93,20.26182161]
[1735478773789,0.95656775,196.04,195.94,20.0]
[1735478776380,24.73345175,196.04,195.9,8.02619498]
[1735478777050,24.73345175,196.04,195.92,20.0]
[1735478778484,24.73345175,196.04,195.93,20.0]
[1735478779180,1.5349,196.03,195.93,20.0]
[1735478779365,0.95676383,196.02,195.93,20.0]
[1735478780349,0.95676383,196.02,195.92,20.0]
[1735478781082,0.95676383,196.02,195.93,20.0]
[1735478781975,23.776884,196.01,195.9,8.02619498]
[1735478782174,0.95690416,196.0,195.9,8.02619498]
[1735478782382,6.3223,195.98,195.9,8.02619498]
[1735478782578,0.9569908,195.97,195.86,8.02619498]
[1735478783178,0.9569908,195.97,195.89,20.0]
[1735478783961,0.9569908,195.97,195.88,20.0]
[1735478785985,0.9569908,195.97,195.89,20.0]
[1735478786881,1.5372,195.96,195.86,8.28872201]
[1735478787182,0.9570023,195.95,195.86,8.28872201]
[1735478787377,0.9570023,195.95,195.86,0.26252703]
[1735478788287,0.9570023,195.95,195.85,8.02619498]
[1735478788576,0.9570023,195.95,195.84,8.28880867]
[1735478791085,0.9570023,195.95,195.87,20.0]
[1735478791593,0.95697658,195.95,195.87,20.0]
[1735478791986,2.49419513,195.96,195.87,20.0]
[1735478793092,1.5372,195.96,195.87,20.0]
[1735478793273,1.5372,195.96,195.86,20.0]
[1735478793465,0.95696252,195.95,195.87,0.26251436]
[1735478794273,6.3223,195.98,195.87,24.03939836]
[1735478794478,2.49408569,196.01,195.87,24.03939836]
[1735478794668,1.5372,196.01,195.9,20.0]
[1735478794879,1.5372,196.01,195.92,20.0]
[1735478795575,6.3223,196.02,195.92,20.0]
[1735478796795,2.57970113,196.05,195.92,20.0]
[1735478796998,2.57970113,196.05,195.96,20.0]
[1735478797194,1.623,196.05,195.96,20.0]
[1735478798989,0.95647837,196.04,195.96,20.0]
[1735478806314,0.95647837,196.04,195.93,0.26177876]
[1735478806485,0.95647837,196.04,195.92,8.02619498]
[1735478806802,0.95647837,196.04,195.94,20.0]
[1735478808185,0.95647837,196.04,195.91,8.02619498]
[1735478808387,23.776884,196.03,195.91,8.02619498]
[1735478808600,0.95676743,196.02,195.94,20.0]
[1735478809511,0.95676743,196.02,195.9,8.28809967]
[1735478809512,0.95676743,196.02,195.93,20.0]
[1735478810913,0.95676743,196.02,195.92,20.0]
[1735478812406,2.57964093,196.05,195.93,0.26187118]
[1735478813424,1.623,196.05,195.93,0.26187118]
[1735478817022,1.623,196.05,195.93,24.03875518]
[1735478817620,6.2149,196.07,195.95,43.776884]
[1735478817836,6.2149,196.07,195.97,20.0]
[1735478820120,0.95641568,196.09,195.98,0.26139934]
[1735478820304,1.5267,196.1,195.98,20.26139934]
[1735478820704,1.5267,196.1,196.02,20.0]
[1735478823730,6.4858,196.12,196.02,20.0]
[1735478824116,1.5267,196.14,196.03,0.26074519]
[1735478825217,0.95612633,196.13,196.02,20.0]
[1735478826127,0.95612633,196.13,196.02,20.26086385]
[1735478827520,1.5267,196.14,196.02,20.26086385]
[1735478828416,0.95609162,196.13,196.02,20.26086385]
[1735478829627,0.95609162,196.13,196.02,0.26086385]
[1735478829925,0.95609162,196.13,196.04,20.0]
[1735478830311,1.5267,196.14,196.04,20.0]
[1735478840233,1.5267,196.14,196.05,20.0]
[1735478841148,1.5267,196.14,196.02,0.26086385]
[1735478841332,0.95611071,196.13,196.01,1.6108]
[1735478857668,0.95611071,196.13,196.01,1.87183378]
[1735478860047,0.95611071,196.13,196.02,0.26083891]
[1735478864173,0.95611071,196.13,196.02,20.26083891]
[1735478865289,1.5267,196.14,196.02,20.26083891]
[1735478867794,1.5267,196.14,196.02,0.26083891]
[1735478867953,1.5267,196.14,196.04,20.0]
[1735478868154,1.5267,196.14,196.05,0.26075964]
[1735478868748,1.5196,196.19,196.06,23.776884]
[1735478869079,1.5196,196.19,196.04,20.0]
[1735478869080,1.5196,196.19,196.11,20.0]
[1735478872962,6.1652,196.22,196.12,0.25994881]
[1735478876792,0.95568447,196.21,196.1,20.0]
[1735478877871,0.95568447,196.21,196.08,0.26013514]
[1735478878485,0.95568447,196.21,196.08,20.26013514]
[1735478879367,0.95568447,196.21,196.08,0.26013514]
[1735478880979,0.95568447,196.21,196.07,1.6385]
[1735478881788,0.95568447,196.21,196.07,1.89884698]
[1735478882493,0.95568447,196.21,196.06,20.0]
[1735478882494,6.242,196.17,196.06,20.0]
[1735478882676,0.95602471,196.16,196.06,20.0]
[1735478883972,6.242,196.17,196.07,0.26060677]
[1735478885910,0.9559037,196.16,196.06,20.0]
[1735478886894,6.242,196.17,196.06,20.0]
[1735478887196,6.242,196.17,196.07,0.26040647]
[1735478887381,0.95592216,196.16,196.07,0.26040647]
[1735478888599,0.95592216,196.16,196.06,20.0]
[1735478891996,0.95592216,196.16,196.04,0.26051952]
[1735478892187,0.95592216,196.16,196.02,9.56989498]
[1735478892188,1.5941,196.14,196.02,9.56989498]
[1735478892391,0.95616243,196.13,196.02,9.56989498]
[1735478892592,0.95616243,196.13,196.05,20.0]
[1735478893084,0.95616243,196.13,196.02,20.0]
[1735478893794,0.95616243,196.13,196.01,20.0]
[1735478898700,6.1194,196.12,195.99,0.26108301]
[1735478898924,6.1194,196.12,195.97,1.5495]
[1735478898925,0.95636932,196.11,195.97,1.5495]
[1735478899309,0.95636932,196.11,196.01,20.0]
[1735478904718,6.1194,196.12,196.01,20.0]
[1735478904719,6.1194,196.12,196.01,20.26112458]
[1735478904900,0.95626763,196.11,196.01,20.26112458]
[1735478905415,0.95626763,196.11,196.01,20.0]
[1735478912312,0.95626763,196.11,195.98,0.261062]
[1735478912515,1.666,196.1,195.97,9.57569498]
[1735478912817,0.95643044,196.09,195.97,9.57569498]
[1735478913018,0.95643044,196.09,196.0,20.0]
[1735478913599,0.95643044,196.09,195.96,20.0]
[1735478914107,6.6605,196.08,195.96,20.0]
[1735478914308,0.95654542,196.07,195.96,20.0]
[1735478915620,0.95654542,196.07,195.94,0.26152885]
[1735478915805,1.666,196.06,195.92,1.85199906]
[1735478916013,0.95663828,196.05,195.92,1.85199906]
[1735478916720,0.95663828,196.05,195.94,20.0]
[1735478917541,0.95663828,196.05,195.92,21.85199906]
[1735478919126,23.776884,195.99,195.86,8.02619498]